bitfinex/quotes_BTCUSD_20240821
["timestamp","ask_amount","ask_price","bid_price","bid_amount"]
[1724261372248,0.065,60030.0,60027.0,0.641791]
[1724261372456,0.065,60030.0,60027.0,0.4752]
[1724261372457,0.0792,60029.0,60027.0,0.4752]
[1724261372858,0.0792,60029.0,60027.0,0.641791]
[1724261376675,0.18918008,60031.0,60027.0,0.641791]
[1724261376875,0.18918008,60031.0,60027.0,0.166591]
[1724261377083,0.166583,60030.0,60027.0,0.166591]
[1724261377282,0.166583,60030.0,60025.0,0.33319]
[1724261377283,0.189586,60029.0,60025.0,0.166595]
[1724261377504,0.189586,60029.0,60026.0,0.166593]
[1724261377908,0.189586,60029.0,60027.0,0.166591]
[1724261377909,0.023,60029.0,60027.0,0.166591]
[1724261378111,0.023,60030.0,60027.0,0.166591]
[1724261378514,0.189584,60030.0,60027.0,0.166591]
[1724261378852,0.166588,60029.0,60025.0,0.33059998]
[1724261379063,0.166589,60028.0,60023.0,0.3332]
[1724261379260,0.023,60027.0,60024.0,0.166599]
[1724261379461,0.023,60027.0,60023.0,0.3332]
[1724261379665,0.189586,60029.0,60026.0,0.166593]
[1724261380038,0.189586,60029.0,60022.0,0.3341112]
[1724261380039,0.023,60029.0,60022.0,0.3341112]
[1724261380299,0.166592,60027.0,60024.0,0.166599]
[1724261380503,0.023,60029.0,60023.0,0.333201]
[1724261380504,0.189588,60029.0,60023.0,0.333201]
[1724261380709,0.023,60029.0,60024.0,0.333195]
[1724261380921,0.023823,60031.0,60029.0,0.166584]
[1724261381117,0.023823,60031.0,60030.0,0.166583]
[1724261381334,0.023823,60031.0,60029.0,0.166585]
[1724261381960,0.000823,60031.0,60029.0,0.166585]
[1724261382317,0.000823,60031.0,60028.0,0.415177]
[1724261382318,0.000823,60031.0,60030.0,0.1832004]
[1724261382926,0.000823,60031.0,60030.0,0.0166174]
[1724261383132,0.000823,60031.0,60030.0,1.40960138]
[1724261386829,0.000823,60031.0,60030.0,1.45908197]
[1724261387009,0.000823,60031.0,60030.0,1.40960138]
[1724261387525,0.000823,60031.0,60030.0,1.85325435]
[1724261387934,0.000823,60031.0,60030.0,1.95779465]
[1724261388139,1e-08,60031.0,60030.0,1.98253495]
[1724261388269,1e-08,60031.0,60030.0,2.01353495]
[1724261388474,1e-08,60031.0,60030.0,1.88883346]
[1724261388916,1e-08,60031.0,60030.0,1.98793965]
[1724261389116,1e-08,60031.0,60030.0,1.95793965]
[1724261389289,1e-08,60031.0,60030.0,1.56373374]
[1724261390187,1e-08,60031.0,60030.0,1.48940138]
[1724261390387,1e-08,60031.0,60030.0,1.93316954]
[1724261390598,1e-08,60031.0,60030.0,1.93316606]
[1724261390793,1e-08,60031.0,60030.0,1.48940138]
[1724261390994,1e-08,60031.0,60030.0,1.34670138]
[1724261391201,1e-08,60031.0,60030.0,1.39626334]
[1724261391404,1e-08,60031.0,60030.0,1.01353538]
[1724261391643,1e-08,60031.0,60030.0,1.01273538]
[1724261396142,1e-08,60031.0,60030.0,0.72913527]
[1724261396346,1e-08,60031.0,60030.0,1.06230127]
[1724261396490,1e-08,60031.0,60030.0,1.01273538]
[1724261397729,1e-08,60031.0,60030.0,0.67956938]
[1724261398115,1e-08,60031.0,60030.0,0.5155664]
[1724261398313,1e-08,60031.0,60030.0,0.1824004]
[1724261398902,0.08740001,60031.0,60030.0,0.0158174]
[1724261399117,0.25398001,60031.0,60030.0,0.0158174]
[1724261399322,0.58714101,60031.0,60030.0,0.0158174]
[1724261399525,0.166587,60029.0,60027.0,0.0009053]
[1724261399728,0.023,60028.0,60027.0,0.0009053]
[1724261400341,0.189588,60028.0,60027.0,0.0009053]
[1724261400756,0.023,60028.0,60027.0,0.1674963]
[1724261400962,0.06440001,60031.0,60027.0,0.0009053]
[1724261400963,0.189583,60030.0,60027.0,0.0009053]
[1724261401166,0.06440001,60031.0,60030.0,0.499749]
[1724261401167,1e-08,60031.0,60030.0,0.499749]
[1724261401341,1e-08,60031.0,60030.0,1.04650385]
[1724261401574,1e-08,60031.0,60030.0,1.07126682]
[1724261401984,1e-08,60031.0,60030.0,1.52320731]
[1724261402185,1e-08,60031.0,60030.0,1.44885603]
[1724261402608,1e-08,60031.0,60030.0,1.03319003]
[1724261402824,1e-08,60031.0,60030.0,1.10756962]
[1724261403037,1e-08,60031.0,60030.0,0.66375198]
[1724261403613,1e-08,60031.0,60030.0,0.99691798]
[1724261403950,1e-08,60031.0,60030.0,1.04651376]
[1724261404560,1e-08,60031.0,60030.0,0.99691798]
[1724261405012,1e-08,60031.0,60030.0,0.99782328]
[1724261405209,1e-08,60031.0,60030.0,1.04743172]
[1724261405435,1e-08,60031.0,60030.0,0.99782328]
[1724261405837,1e-08,60031.0,60030.0,1.04744028]
[1724261406240,1e-08,60031.0,60030.0,1.04744078]
[1724261406575,1e-08,60031.0,60030.0,1.07220287]
[1724261406773,1e-08,60031.0,60030.0,1.44166002]
[1724261406922,1e-08,60031.0,60030.0,1.96580972]
[1724261407130,0.02611935,60036.0,60035.0,0.913447]
[1724261407330,0.02611935,60036.0,60035.0,2.0944075]
[1724261407541,0.000822,60041.0,60040.0,0.974177]
[1724261407755,0.000822,60041.0,60040.0,1.83974813]
[1724261407954,0.062822,60041.0,60040.0,0.36945715]
[1724261408159,0.140722,60041.0,60040.0,0.46863258]
[1724261408439,0.140722,60041.0,60035.0,0.04959001]
[1724261408625,0.333119,60039.0,60033.0,0.04959001]
[1724261408793,0.140722,60041.0,60030.0,0.05049531]
[1724261408794,0.0808,60033.0,60030.0,0.05049531]
[1724261408994,0.0808,60033.0,60031.0,0.16658]
[1724261409202,0.0808,60033.0,60030.0,0.38366031]
[1724261409203,0.023,60032.0,60030.0,0.0009053]
[1724261409399,0.023,60032.0,60031.0,0.16658]
[1724261409596,0.023,60032.0,60031.0,0.499741]
[1724261409880,0.247364,60037.0,60032.0,0.166575]
[1724261409881,0.023,60036.0,60032.0,0.166575]
[1724261410082,0.166571,60035.0,60030.0,0.05549531]
[1724261410297,0.166571,60035.0,60031.0,0.16658]
[1724261410298,0.023,60034.0,60031.0,0.16658]
[1724261410692,0.023,60034.0,60031.0,0.011]
[1724261410818,0.231577,60032.0,60031.0,0.011]
[1724261411022,0.254577,60032.0,60031.0,0.011]
[1724261411633,0.254577,60032.0,60030.0,0.0009053]
[1724261411903,0.18958,60031.0,60030.0,0.0119053]
[1724261412215,0.18958,60031.0,60030.0,0.0009053]
[1724261412422,1.0280886,60031.0,60030.0,0.0009053]
[1724261412600,1.329263,60031.0,60030.0,0.0009053]
[1724261413501,1.762424,60031.0,60030.0,0.0039053]
[1724261414079,1.762424,60031.0,60030.0,0.0009053]
[1724261414494,1.762424,60031.0,60030.0,0.0019053]
[1724261415034,1.762424,60031.0,60030.0,0.0009053]
[1724261415662,1.429263,60031.0,60030.0,0.0019053]
[1724261415863,1.429263,60031.0,60030.0,0.0009053]
[1724261416065,0.40678,60031.0,60030.0,0.0009053]
[1724261416379,0.16658,60031.0,60030.0,0.0029053]
[1724261416746,0.16658,60031.0,60030.0,0.0019053]
[1724261416747,0.499741,60031.0,60030.0,0.0019053]
[1724261416929,0.499741,60031.0,60030.0,0.0147855]
[1724261417149,0.16658,60031.0,60030.0,0.0029053]
[1724261417428,0.167403,60031.0,60030.0,0.0029053]
[1724261417650,0.167403,60031.0,60030.0,0.0019053]
[1724261417858,0.190403,60031.0,60030.0,0.0019053]
[1724261418077,0.023823,60031.0,60030.0,0.0019053]
[1724261418276,0.000823,60031.0,60030.0,0.5811543]
[1724261418416,0.000823,60031.0,60030.0,0.2479883]
[1724261419021,0.000823,60031.0,60030.0,0.26617921]
[1724261419425,0.000823,60031.0,60030.0,0.0009053]
[1724261419638,0.000823,60031.0,60030.0,0.0019053]
[1724261419854,0.167403,60031.0,60030.0,0.0019053]
[1724261420060,0.167403,60031.0,60030.0,0.0009053]
[1724261420061,1.0675952,60031.0,60030.0,0.0009053]
[1724261420275,1.5237562,60031.0,60030.0,0.0009053]
[1724261420452,1.42140174,60031.0,60030.0,0.0009053]
[1724261422478,1.42140174,60031.0,60030.0,0.0019053]
[1724261422904,1.08824074,60031.0,60030.0,0.0009053]
[1724261423105,1.08824074,60031.0,60030.0,0.0029053]
[1724261423542,1.08824074,60031.0,60030.0,0.0009053]
[1724261423772,1.45192469,60031.0,60030.0,0.0009053]
[1724261424503,1.42140174,60031.0,60030.0,0.0009053]
[1724261425840,1.91856572,60031.0,60030.0,0.0009053]
[1724261426717,1.42140174,60031.0,60030.0,0.0019053]
[1724261427551,1.42140174,60031.0,60030.0,0.0029053]
[1724261427957,1.42140174,60031.0,60030.0,0.0019053]
[1724261428360,1.42140174,60031.0,60030.0,0.0029053]
[1724261428692,1.42140174,60031.0,60030.0,0.0019053]
[1724261428898,1.42140174,60031.0,60030.0,0.0029053]
[1724261429542,1.42140174,60031.0,60030.0,0.0019053]
[1724261429746,1.42222474,60031.0,60030.0,0.0019053]
[1724261429950,1.42222474,60031.0,60030.0,0.0029053]
[1724261430270,1.06606374,60031.0,60030.0,0.0029053]
[1724261430904,1.06606374,60031.0,60030.0,0.0019053]
[1724261431308,0.48470274,60031.0,60030.0,0.0029053]
[1724261431722,0.81786374,60031.0,60030.0,0.0019053]
[1724261431931,0.84086374,60031.0,60030.0,0.0019053]
[1724261432550,0.84086374,60031.0,60030.0,0.0009053]
[1724261433220,0.50770274,60031.0,60030.0,0.0009053]
[1724261434080,0.84086374,60031.0,60030.0,0.0009053]
[1724261434275,0.50770274,60031.0,60030.0,0.0009053]
[1724261436351,0.023823,60031.0,60030.0,0.3040883]
[1724261436780,0.000823,60031.0,60030.0,0.6372543]
[1724261436931,0.000823,60031.0,60030.0,1.13442328]
[1724261437177,0.000823,60031.0,60030.0,1.46758928]
[1724261437384,0.000823,60031.0,60030.0,1.47058928]
[1724261437579,0.000823,60031.0,60030.0,1.83999219]
[1724261437580,1e-08,60031.0,60030.0,1.83999219]
[1724261437784,1e-08,60031.0,60030.0,2.2992207]
[1724261437982,0.00822,60044.0,60040.0,1.168888]
[1724261438186,0.00822,60044.0,60040.0,2.13726009]
[1724261438398,0.00822,60044.0,60040.0,2.2609973]
[1724261438607,0.00822,60044.0,60040.0,2.16331463]
[1724261439214,0.00822,60044.0,60040.0,2.26099554]
[1724261439470,0.00822,60044.0,60040.0,2.24921838]
[1724261439666,0.00822,60044.0,60040.0,2.15026009]
[1724261439879,0.00822,60044.0,60040.0,2.48337109]
[1724261440104,0.00822,60044.0,60040.0,2.60710654]
[1724261440313,0.00822,60044.0,60040.0,2.60810654]
[1724261440518,0.00822,60044.0,60040.0,2.22312393]
[1724261440731,0.00822,60044.0,60040.0,2.21007109]
[1724261440943,0.00822,60044.0,60040.0,2.2361235]
[1724261441157,0.00822,60044.0,60040.0,2.6562345]
[1724261441360,0.00822,60044.0,60043.0,1.200829]
[1724261441564,0.00822,60044.0,60043.0,1.97030109]
[1724261441768,0.00822,60044.0,60043.0,2.3294457]
[1724261442424,0.00822,60044.0,60043.0,2.4268178]
[1724261442634,0.00822,60044.0,60043.0,2.4398178]
[1724261443065,0.00822,60044.0,60043.0,1.94830109]
[1724261443273,0.00822,60044.0,60043.0,1.6293099]
[1724261443479,0.00822,60044.0,60043.0,1.59493198]
[1724261444109,0.00822,60044.0,60043.0,1.59193198]
[1724261445974,0.00822,60044.0,60043.0,1.59593198]
[1724261446220,0.00822,60044.0,60043.0,2.04028743]
[1724261446420,0.00822,60044.0,60043.0,2.39806123]
[1724261446592,0.00822,60044.0,60043.0,2.37330463]
[1724261447333,0.00822,60044.0,60043.0,1.93002598]
[1724261447534,0.00822,60044.0,60043.0,2.29929693]
[1724261447807,0.00822,60044.0,60043.0,2.83239093]
[1724261447951,0.00822,60044.0,60043.0,2.95581364]
[1724261448157,0.166455,60077.0,60071.0,0.499408]
[1724261448368,0.0002,60079.0,60066.0,0.332963]
[1724261448369,0.166462,60074.0,60066.0,0.332963]
[1724261448564,0.1425,60076.0,60071.0,0.166469]
[1724261448766,0.308956,60076.0,60071.0,0.166469]
[1724261449190,0.1425,60076.0,60071.0,0.66341098]
[1724261449616,0.1425,60076.0,60071.0,0.66441098]
[1724261449998,0.308955,60076.0,60071.0,0.66541098]
[1724261450400,0.166465,60073.0,60071.0,0.002]
[1724261450637,0.332921,60075.0,60071.0,0.002]
[1724261450835,0.166462,60074.0,60071.0,0.002]
[1724261451032,0.03132,60072.0,60071.0,0.002]
[1724261451261,0.197786,60072.0,60071.0,0.002]
[1724261451465,0.03132,60072.0,60071.0,0.002]
[1724261451880,0.197786,60072.0,60071.0,0.002]
[1724261452615,0.530719,60072.0,60071.0,0.002]
[1724261453017,0.03132,60072.0,60071.0,0.002]
[1724261453232,0.197786,60072.0,60071.0,0.002]
[1724261453863,0.03132,60072.0,60071.0,0.002]
[1724261454066,0.197786,60072.0,60071.0,0.002]
[1724261455126,1.275285,60072.0,60071.0,0.002]
[1724261455324,0.942352,60072.0,60071.0,0.002]
[1724261455609,0.276486,60072.0,60071.0,0.002]
[1724261455826,0.197786,60072.0,60071.0,0.002]
[1724261456265,0.03132,60072.0,60071.0,0.002]
[1724261456472,0.03132,60072.0,60071.0,0.66541098]
[1724261456694,0.03132,60072.0,60071.0,1.41338898]
[1724261456695,0.00832,60072.0,60071.0,1.41338898]
[1724261456899,0.00832,60072.0,60071.0,1.08044998]
[1724261457110,0.00832,60072.0,60071.0,0.74751098]
[1724261457303,0.00832,60072.0,60071.0,0.16600298]
[1724261457528,0.174786,60072.0,60071.0,0.002]
[1724261457748,0.902452,60072.0,60071.0,0.002]
[1724261457932,1.004152,60072.0,60071.0,0.002]
[1724261458148,1.004152,60072.0,60060.0,0.4752]
[1724261458149,0.332952,60069.0,60060.0,0.4752]
[1724261458355,0.17182,60072.0,60060.0,0.4752]
[1724261458356,0.16649,60064.0,60060.0,0.4752]
[1724261458561,0.355957,60068.0,60060.0,0.4752]
[1724261458562,0.189494,60063.0,60060.0,0.4752]
[1724261459216,0.0618,60062.0,60049.0,0.0609]
[1724261459421,0.0618,60062.0,60049.0,0.16400298]
[1724261459422,0.0787,60054.0,60049.0,0.16400298]
[1724261459624,0.0618,60051.0,60044.0,0.166544]
[1724261459829,0.333048,60052.0,60045.0,0.33054398]
[1724261460029,0.166528,60050.0,60045.0,0.33054398]
[1724261460433,0.023,60049.0,60047.0,0.166535]
[1724261460603,0.023,60049.0,60047.0,0.16400298]
[1724261460906,0.0787,60054.0,60047.0,0.16400298]
[1724261460907,0.189529,60050.0,60047.0,0.16400298]
[1724261461304,0.023,60050.0,60047.0,0.16400298]
[1724261461628,0.49957,60052.0,60047.0,0.16400298]
[1724261461629,0.023,60051.0,60047.0,0.16400298]
[1724261461825,0.023,60051.0,60045.0,0.49962]
[1724261461826,0.166536,60048.0,60044.0,0.001]
[1724261462009,0.023,60047.0,60045.0,0.16400298]
[1724261462251,0.023,60047.0,60046.0,0.166538]
[1724261462445,0.166528,60050.0,60049.0,0.16653]
[1724261462446,0.002,60050.0,60049.0,0.16653]
[1724261462741,0.16651,60057.0,60049.0,0.80989398]
[1724261462941,0.023,60056.0,60051.0,0.166522]
[1724261463148,0.333012,60058.0,60052.0,0.166521]
[1724261463149,0.18951,60057.0,60052.0,0.166521]
[1724261463352,0.189509,60057.0,60053.0,0.166519]
[1724261464008,0.189509,60057.0,60052.0,0.16400298]
[1724261464009,0.023,60057.0,60052.0,0.16400298]
[1724261464416,0.023,60057.0,60053.0,0.01432015]
[1724261464623,0.333023,60056.0,60053.0,0.01432015]
[1724261464832,0.023,60055.0,60052.0,0.16400298]
[1724261465938,0.023,60055.0,60052.0,0.33052398]
[1724261466275,0.023,60055.0,60052.0,0.16400298]
[1724261466474,0.023,60055.0,60052.0,0.33052298]
[1724261466475,0.024,60055.0,60052.0,0.33052298]
[1724261466878,0.024,60055.0,60053.0,0.01432015]
[1724261467403,0.024,60055.0,60045.0,0.0755]
[1724261467404,0.0603,60053.0,60040.0,0.0605]
[1724261467595,0.0603,60053.0,60030.0,0.0309053]
[1724261467596,0.973622,60044.0,60030.0,0.0009053]
[1724261467804,1.306711,60044.0,60030.0,0.0009053]
[1724261468013,2.21560298,60044.0,60030.0,0.0009053]
[1724261468405,2.21760298,60044.0,60030.0,0.0009053]
[1724261468630,2.21760298,60044.0,60043.0,0.0019042]
[1724261468631,2.37958176,60044.0,60043.0,0.0019042]
[1724261468945,2.38058176,60044.0,60043.0,0.0009042]
[1724261469146,2.40570411,60044.0,60043.0,0.0009042]
[1724261469596,2.41270411,60044.0,60043.0,0.0029042]
[1724261469981,2.40970411,60044.0,60043.0,0.0019042]
[1724261470188,2.41170411,60044.0,60043.0,0.0019042]
[1724261470403,2.74479311,60044.0,60043.0,0.0019042]
[1724261470812,2.74679311,60044.0,60043.0,0.0019042]
[1724261471036,2.74279311,60044.0,60043.0,0.0019042]
[1724261471379,2.74579311,60044.0,60043.0,0.0029042]
[1724261471585,2.73879311,60044.0,60043.0,0.0009042]
[1724261471797,2.74979311,60044.0,60043.0,0.0019042]
[1724261472007,2.26360749,60044.0,60043.0,0.0029042]
[1724261472215,2.26760749,60044.0,60043.0,0.0029042]
[1724261472469,2.42058627,60044.0,60043.0,0.0019042]
[1724261472844,2.43158627,60044.0,60043.0,0.0029042]
[1724261473873,1.644624,60031.0,60030.0,0.0009053]
[1724261474084,2.43358798,60031.0,60030.0,0.0009053]
[1724261474291,2.55658798,60031.0,60030.0,0.0009053]
[1724261474711,2.58271796,60031.0,60030.0,0.0009053]
[1724261475147,2.59071796,60031.0,60030.0,0.0019053]
[1724261475358,2.75669674,60031.0,60030.0,0.0029053]
[1724261475599,2.74669674,60031.0,60030.0,0.0009053]
[1724261476083,2.74669674,60031.0,60030.0,0.0029053]
[1724261476084,2.75169674,60031.0,60030.0,0.0029053]
[1724261476491,2.74169674,60031.0,60030.0,0.0009053]
[1724261477380,1.978934,60026.0,60025.0,0.0002047]
[1724261477587,2.39926676,60026.0,60025.0,0.0002047]
[1724261478683,2.41326676,60026.0,60025.0,0.0002047]
[1724261478936,2.76856003,60026.0,60025.0,0.0002047]
[1724261479360,2.61023025,60026.0,60025.0,0.0002047]
[1724261479572,2.60523025,60026.0,60025.0,0.0002047]
[1724261480026,2.60323025,60026.0,60025.0,0.0002047]
[1724261480226,2.60523025,60026.0,60025.0,0.0002047]
[1724261480851,2.61923025,60026.0,60025.0,0.0002047]
[1724261481179,2.79720903,60026.0,60025.0,0.0012047]
[1724261481387,2.76920903,60026.0,60025.0,0.0002047]
[1724261481574,2.78320903,60026.0,60025.0,0.0012047]
[1724261481973,2.78320903,60026.0,60025.0,0.0002047]
[1724261482196,2.81120903,60026.0,60025.0,0.0012047]
[1724261482606,3.08500903,60026.0,60025.0,0.0012047]
[1724261483959,3.07100903,60026.0,60025.0,0.0012047]
[1724261484364,3.08500903,60026.0,60025.0,0.0022047]
[1724261484477,3.07100903,60026.0,60025.0,0.0012047]
[1724261484677,3.05700903,60026.0,60025.0,0.0002047]
[1724261484877,3.09168703,60026.0,60025.0,0.0022047]
[1724261486332,2.59452025,60026.0,60025.0,0.0022047]
[1724261486540,2.23633225,60026.0,60025.0,0.0022047]
[1724261486742,2.22965425,60026.0,60025.0,0.0022047]
[1724261487360,2.23165425,60026.0,60025.0,0.0022047]
[1724261487564,2.21765425,60026.0,60025.0,0.0012047]
[1724261487770,2.36763303,60026.0,60025.0,0.0002047]
[1724261487972,2.72382103,60026.0,60025.0,0.0012047]
[1724261488189,1.641622,60023.0,60022.0,0.0009042]
[1724261488401,2.23682998,60023.0,60022.0,0.0009042]
[1724261488598,1.90362498,60023.0,60022.0,0.0009042]
[1724261488793,1.92975781,60023.0,60022.0,0.0009042]
[1724261489007,2.26396281,60023.0,60022.0,0.0009042]
[1724261489207,2.41929259,60023.0,60022.0,0.0009042]
[1724261489887,1.92975781,60023.0,60022.0,0.0009042]
[1724261490849,1.94375781,60023.0,60022.0,0.0019042]
[1724261491268,1.95775781,60023.0,60022.0,0.0029042]
[1724261491472,1.95775781,60023.0,60022.0,0.0019042]
[1724261491473,2.10773659,60023.0,60022.0,0.0019042]
[1724261491683,2.44194159,60023.0,60022.0,0.0019042]
[1724261491889,2.47894159,60023.0,60022.0,0.0029042]
[1724261492087,2.47794159,60023.0,60022.0,0.0029042]
[1724261492369,2.31396281,60023.0,60022.0,0.0029042]
[1724261492880,2.31496281,60023.0,60022.0,0.0029042]
[1724261493016,2.31396281,60023.0,60022.0,0.0029042]
[1724261493220,1.98075781,60023.0,60022.0,0.0029042]
[1724261493606,1.98175781,60023.0,60022.0,0.0029042]
[1724261493807,2.14573659,60023.0,60022.0,0.0029042]
[1724261494013,2.47954072,60023.0,60022.0,0.0029042]
[1724261494215,2.14473659,60023.0,60022.0,0.0029042]
[1724261495009,2.47954072,60023.0,60022.0,0.0029042]
[1724261495219,2.14633572,60023.0,60022.0,0.0029042]
[1724261496043,2.14633572,60023.0,60019.0,6.685e-05]
[1724261496044,1.24663713,60022.0,60019.0,6.685e-05]
[1724261496247,1.73681889,60022.0,60019.0,6.685e-05]
[1724261496465,1.73681889,60022.0,60019.0,8.5e-07]
[1724261496466,0.00459913,60020.0,60019.0,8.5e-07]
[1724261496664,0.00459913,60020.0,60010.0,0.0009042]
[1724261496665,0.97377913,60011.0,60010.0,0.0009042]
[1724261496887,2.09052698,60011.0,60010.0,0.0009042]
[1724261497121,1.84152698,60011.0,60010.0,0.0009042]
[1724261497332,1.43045498,60011.0,60010.0,0.0009042]
[1724261497507,1.45659289,60011.0,60010.0,0.0009042]
[1724261497954,1.90415218,60011.0,60010.0,0.0019042]
[1724261498191,1.75839289,60011.0,60010.0,0.0019042]
[1724261498406,1.78139289,60011.0,60010.0,0.0019042]
[1724261498582,1.47959289,60011.0,60010.0,0.0009042]
[1724261498811,1.50659289,60011.0,60010.0,0.0029042]
[1724261499011,1.48045498,60011.0,60010.0,0.0019042]
[1724261499219,1.92042193,60011.0,60010.0,0.0019042]
[1724261499422,1.76825498,60011.0,60010.0,0.0019042]
[1724261499626,1.48045498,60011.0,60010.0,0.0792042]
[1724261499750,0.96018,60011.0,60010.0,0.0792042]
[1724261499954,0.84618,60011.0,60010.0,0.1405042]
[1724261500183,1.179452,60011.0,60010.0,0.1405042]
[1724261500380,0.86518,60011.0,60010.0,0.1405042]
[1724261500890,0.032,60011.0,60010.0,0.64082007]
[1724261501096,0.166611,60020.0,60016.0,0.00040087]
[1724261501525,0.333217,60021.0,60016.0,0.00040087]
[1724261501526,0.166619,60017.0,60016.0,0.00040087]
[1724261501733,0.166616,60019.0,60017.0,0.0751]
[1724261502145,0.333205,60023.0,60017.0,0.0751]
[1724261502146,0.166612,60020.0,60017.0,0.07550087]
[1724261502357,0.333205,60023.0,60017.0,0.07550087]
[1724261502358,0.166614,60019.0,60017.0,0.07550087]
[1724261502537,0.166602,60024.0,60022.0,0.0832]
[1724261502781,0.1,60027.0,60022.0,0.0832]
[1724261502782,0.166602,60023.0,60022.0,0.0832]
[1724261503833,0.189602,60023.0,60022.0,0.0832]
[1724261504042,0.522807,60023.0,60022.0,0.0832]
[1724261504449,0.522807,60023.0,60018.0,0.1479]
[1724261504450,0.49984,60019.0,60018.0,0.1479]
[1724261504630,0.52284,60019.0,60018.0,0.1479]
[1724261505486,0.856067,60019.0,60018.0,0.0662]
[1724261505686,0.856067,60019.0,60018.0,0.0702]
[1724261506217,0.856067,60019.0,60018.0,0.004]
[1724261506218,1.02006998,60019.0,60018.0,0.004]
[1724261506417,1.43549698,60019.0,60018.0,0.004]
[1724261506607,1.53549698,60019.0,60018.0,0.004]
[1724261507042,1.93242398,60019.0,60018.0,0.007]
[1724261507247,2.09840276,60019.0,60018.0,0.007]
[1724261507452,1.166452,60011.0,60010.0,0.0009042]
[1724261507682,1.33045498,60011.0,60010.0,0.0009042]
[1724261508101,1.35345498,60011.0,60010.0,0.0009042]
[1724261508307,1.37958818,60011.0,60010.0,0.0009042]
[1724261510484,1.38658818,60011.0,60010.0,0.0019042]
[1724261511551,1.2225852,60011.0,60010.0,0.0019042]
[1724261511766,1.49563063,60011.0,60010.0,0.0019042]
[1724261512177,1.82890263,60011.0,60010.0,0.0019042]
[1724261512395,1.82890263,60011.0,60010.0,0.1439042]
[1724261512396,1.20762765,60011.0,60010.0,0.1439042]
[1724261512658,1.20762765,60011.0,60010.0,0.14430507]
[1724261512659,0.0331332,60011.0,60010.0,0.14430507]
[1724261512861,0.0331332,60011.0,60010.0,1.469888]
[1724261512862,0.007,60011.0,60010.0,1.469888]
[1724261513073,0.166621,60017.0,60012.0,0.0784]
[1724261513251,0.166621,60017.0,60016.0,0.00040087]
[1724261513699,0.166621,60017.0,60016.0,0.0325274]
[1724261513911,0.166621,60017.0,60016.0,0.00040087]
[1724261514084,0.166621,60017.0,60016.0,0.0325274]
[1724261514323,0.166621,60017.0,60016.0,0.00040087]
[1724261514532,0.166621,60017.0,60016.0,0.0325274]
[1724261514746,0.023,60017.0,60016.0,0.007]
[1724261514947,0.023,60017.0,60016.0,0.03912653]
[1724261514948,0.189619,60017.0,60016.0,0.03912653]
[1724261515164,0.522857,60017.0,60016.0,0.007]
[1724261515370,0.023,60017.0,60016.0,0.03912653]
[1724261515595,0.000823,60023.0,60021.0,0.08160087]
[1724261515799,0.000823,60023.0,60022.0,0.89462787]
[1724261516077,0.000823,60023.0,60022.0,1.67851227]
[1724261516292,1e-08,60023.0,60022.0,2.16237264]
[1724261517140,1e-08,60023.0,60022.0,2.16337264]
[1724261517560,0.000823,60031.0,60030.0,0.97751587]
[1724261517822,0.000823,60031.0,60030.0,1.51399225]
[1724261518029,0.000823,60031.0,60030.0,1.84415825]
[1724261518440,0.000823,60031.0,60030.0,1.87612348]
[1724261518645,0.000823,60031.0,60030.0,1.87712348]
[1724261519286,0.000823,60031.0,60030.0,2.21228948]
[1724261519502,0.000822,60047.0,60037.0,0.001]
[1724261519709,0.000822,60047.0,60046.0,0.14380087]
[1724261519914,0.000822,60047.0,60046.0,0.31033887]
[1724261520115,0.000822,60047.0,60046.0,0.34211985]
[1724261521020,0.000822,60047.0,60046.0,0.34311985]
[1724261521928,0.000822,60047.0,60046.0,0.67619685]
[1724261522136,0.000822,60047.0,60046.0,1.00927385]
[1724261522967,0.000822,60047.0,60046.0,1.50635383]
[1724261523404,0.000822,60047.0,60046.0,1.50535383]
[1724261523838,0.000822,60047.0,60046.0,1.51635383]
[1724261524047,0.000822,60047.0,60046.0,1.50635383]
[1724261524291,0.000822,60047.0,60046.0,1.51935383]
[1724261524751,0.000822,60047.0,60046.0,1.50535383]
[1724261524956,0.000822,60047.0,60046.0,1.18627683]
[1724261525385,0.000822,60047.0,60046.0,1.52235383]
[1724261525673,0.00832,60072.0,60071.0,0.31206987]
[1724261525889,0.00832,60072.0,60071.0,1.14195085]
[1724261526312,0.00832,60072.0,60071.0,0.80901185]
[1724261526951,0.00832,60072.0,60071.0,0.48607285]
[1724261527172,0.174786,60072.0,60071.0,0.15560087]
[1724261527382,0.174786,60072.0,60071.0,0.16760087]
[1724261527582,0.00832,60072.0,60071.0,0.15560087]
[1724261527790,0.00832,60072.0,60071.0,0.16760087]
[1724261528004,0.00832,60072.0,60071.0,0.15760087]
[1724261528005,0.03132,60072.0,60071.0,0.15760087]
[1724261528212,0.00832,60072.0,60071.0,0.14560087]
[1724261528421,0.00832,60072.0,60071.0,0.33506987]
[1724261528834,0.00832,60072.0,60071.0,0.15760087]
[1724261529045,0.00832,60072.0,60071.0,0.32406987]
[1724261529257,0.00798548,60072.0,60071.0,0.33506987]
[1724261529872,0.00798548,60072.0,60071.0,1.49788985]
[1724261530286,0.00798548,60072.0,60071.0,1.16495085]
[1724261530517,0.00798548,60072.0,60071.0,0.66800887]
[1724261530784,0.00798548,60072.0,60071.0,0.65600887]
[1724261531032,0.00798548,60072.0,60071.0,0.08830087]
[1724261531271,1e-08,60072.0,60071.0,0.07730087]
[1724261531515,1e-08,60072.0,60071.0,0.08830087]
[1724261531760,0.85533201,60072.0,60071.0,0.02340087]
[1724261532032,1.18826501,60072.0,60071.0,0.012]
[1724261532242,1.18826501,60072.0,60071.0,0.023]
[1724261532656,1.18826501,60072.0,60071.0,0.012]
[1724261532861,1.18826501,60072.0,60062.0,0.00040087]
[1724261532862,0.0816,60071.0,60062.0,0.00040087]
[1724261533073,0.0816,60071.0,60060.0,0.00040087]
[1724261533074,0.166497,60061.0,60060.0,0.00040087]
[1724261533486,0.189497,60061.0,60060.0,0.00040087]
[1724261534521,1.188479,60061.0,60060.0,0.005]
[1724261534735,1.268879,60061.0,60060.0,0.005]
[1724261534946,1.76587598,60061.0,60060.0,0.005]
[1724261535152,1.86587598,60061.0,60060.0,0.009]
[1724261535630,1.86587598,60061.0,60044.0,0.00040087]